bitfinex-derivatives/quotes_ETHF0:USTF0_20251216
["timestamp","ask_amount","ask_price","bid_price","bid_amount"]
[1765890488731,3.76357686,2948.2,2947.2,15.00775496]
[1765890488938,2.34,2948.2,2947.2,15.00775496]
[1765890489139,0.16964,2948.0,2947.2,15.00775496]
[1765890489339,2.42964,2948.0,2947.2,15.00775496]
[1765890489843,0.61297747,2947.9,2947.2,15.00775496]
[1765890490041,2.99332747,2947.9,2947.2,15.00775496]
[1765890490247,2.55,2947.9,2947.2,15.00775496]
[1765890490639,2.55,2947.9,2947.2,15.17743496]
[1765890491137,2.55,2947.9,2947.3,0.16968]
[1765890497446,1.25172581,2948.9,2947.6,2.57900075]
[1765890497648,3.78172581,2948.9,2947.6,2.74866075]
[1765890498050,40.8,2948.8,2947.6,2.74866075]
[1765890498344,43.49,2948.8,2948.0,0.16964]
[1765890498542,2.69,2948.8,2948.0,0.16964]
[1765890501452,2.69,2948.8,2948.1,2.74863075]
[1765890501453,2.35,2948.8,2948.1,2.74863075]
[1765890501654,2.35,2948.8,2948.2,6.201]
[1765890501849,10.92900075,2948.8,2947.2,0.00875496]
[1765890502049,1.41665168,2948.7,2947.2,0.00875496]
[1765890504956,2.47,2948.2,2947.4,4.11167075]
[1765890505549,2.47,2948.2,2947.5,0.16967]
[1765890505747,0.32,2948.2,2947.5,0.16967]
[1765890506152,40.8,2948.7,2947.6,0.16966]
[1765890506453,2.18,2948.7,2948.0,0.16964]
[1765890506647,0.68,2948.7,2948.0,0.16964]
[1765890507050,2.36,2948.7,2948.0,0.16964]
[1765890513660,2.19,2948.7,2948.0,0.16964]
[1765890514955,2.59,2948.7,2948.0,0.16964]
[1765890515558,40.8,2949.0,2948.0,0.16964]
[1765890515755,43.39,2949.0,2948.0,0.16964]
[1765890517659,43.39,2949.0,2948.1,0.16963]
[1765890522268,43.39,2949.0,2948.3,0.16962]
[1765890525469,0.16959,2948.9,2947.7,0.16965]
[1765890525670,2.47959,2948.9,2947.7,0.16965]
[1765890525863,2.47959,2948.9,2947.8,0.16965]
[1765890528366,2.47959,2948.9,2947.5,2.27805822]
[1765890529173,0.16959,2948.8,2947.5,2.27805822]
[1765890529371,2.48959,2948.8,2947.5,2.27805822]
[1765890530974,1.4697,2947.6,2947.5,4.18165822]
[1765890531268,3.7397,2947.6,2947.5,4.18165822]
[1765890531467,3.8397,2947.6,2947.5,4.18165822]
[1765890531668,0.29,2947.6,2947.5,4.18165822]
[1765890532166,0.29,2947.6,2947.5,4.35132822]
[1765890532361,0.7101,2948.0,2947.9,3.74465822]
[1765890532667,0.4651,2948.5,2947.9,3.74465822]
[1765890532865,1.4697,2948.1,2948.0,1.9036]
[1765890533170,3.7397,2948.1,2948.0,1.9036]
[1765890533371,3.7397,2948.1,2948.0,1.4666]
[1765890533670,3.7397,2948.1,2948.0,0.7304]
[1765890534272,2.9801,2948.1,2948.0,1.9036]
[1765890534466,1.9348,2948.5,2948.4,0.7304]
[1765890534668,4.4548,2948.5,2948.4,0.7304]
[1765890535370,4.4548,2948.5,2948.0,0.437]
[1765890535773,3.9897,2948.5,2948.4,1.4666]
[1765890535972,2.1797,2948.5,2948.4,1.4666]
[1765890536175,3.7597,2948.5,2948.4,1.4666]
[1765890536674,3.7597,2948.5,2948.4,0.7304]
[1765890537766,0.7101,2948.1,2948.0,1.9036]
[1765890538581,3.8697,2948.1,2948.0,0.7304]
[1765890538772,1.4697,2948.0,2947.9,3.91429822]
[1765890539275,0.7101,2948.0,2947.9,3.91429822]
[1765890539868,0.7101,2948.1,2948.0,1.9036]
[1765890540068,1.1001,2948.1,2948.0,1.9036]
[1765890540474,0.7101,2948.1,2948.0,1.9036]
[1765890540780,1.4001,2948.1,2948.0,1.9036]
[1765890541080,1.4697,2948.0,2947.9,2.44769822]
[1765890541278,1.4697,2948.0,2947.9,3.91429822]
[1765890541486,0.7101,2948.0,2947.9,3.91429822]
[1765890541778,0.17741734,2949.1,2948.4,1.4666]
[1765890541969,1.4697,2948.5,2948.4,1.4666]
[1765890542167,2.7897,2948.5,2948.4,1.4666]
[1765890542372,0.7101,2948.5,2948.4,1.4666]
[1765890543683,0.7255,2948.6,2948.5,1.9667]
[1765890543882,3.1055,2948.6,2948.5,1.9667]
[1765890544183,3.8213,2948.6,2948.5,1.9667]
[1765890544981,41.2651,2949.0,2948.5,2.13631]
[1765890545181,0.7255,2948.6,2948.5,2.13631]
[1765890545380,0.7255,2948.6,2948.5,3.65402393]
[1765890545580,1.4413,2948.6,2948.5,3.65402393]
[1765890545977,0.7255,2948.6,2948.5,3.65402393]
[1765890546782,1.9064,2949.0,2948.9,0.7774]
[1765890546984,3.8113,2949.0,2948.9,3.05871393]
[1765890547185,4.0255,2949.0,2948.9,1.51771393]
[1765890547783,3.8113,2949.0,2948.9,2.29511393]
[1765890547979,4.0255,2949.0,2948.9,1.51771393]
[1765890548385,1.4413,2948.6,2948.5,0.16961]
[1765890548584,1.8697,2948.5,2948.4,1.51771393]
[1765890548782,4.4897,2948.5,2948.4,1.51771393]
[1765890549489,1.4413,2948.1,2948.0,0.94704]
[1765890549689,2.9255,2948.1,2948.0,2.13634]
[1765890549878,3.6413,2948.1,2948.0,0.16964]
[1765890550082,3.6413,2948.1,2948.0,1.71064]
[1765890550990,1.4413,2948.1,2948.0,2.13634]
[1765890551392,3.8013,2948.1,2948.0,2.13634]
[1765890552588,0.4284,2948.5,2948.0,2.13634]
[1765890552797,2.9455,2948.5,2948.4,1.541]
[1765890553095,3.4055,2948.5,2948.4,1.541]
[1765890553294,3.0355,2948.5,2948.4,1.541]
[1765890553496,3.7513,2948.5,2948.4,1.541]
[1765890553993,3.0355,2948.5,2948.4,1.541]
[1765890554193,3.7513,2948.5,2948.4,1.541]
[1765890554492,3.7513,2948.5,2948.4,0.7774]
[1765890554697,1.4413,2948.4,2948.3,0.16962]
[1765890554898,3.8213,2948.4,2948.3,0.16962]
[1765890558300,3.9913,2948.4,2948.3,1.71062]
[1765890558499,0.7255,2948.6,2948.5,2.13631]
[1765890558698,1.7513,2948.6,2948.5,4.41407773]
[1765890559498,4.1513,2948.6,2948.5,4.41407773]
[1765890560206,0.9255,2948.6,2948.5,4.41407773]
[1765890560402,1.4413,2948.9,2948.8,0.94699]
[1765890560593,3.6213,2948.9,2948.8,0.16959]
[1765890562808,2.18,2948.9,2948.8,1.71059]
[1765890562999,2.9055,2948.9,2948.8,1.71059]
[1765890563501,3.6213,2948.9,2948.8,1.71059]
[1765890564102,0.00783734,2949.1,2949.0,2.13628]
[1765890564308,1.4413,2949.5,2949.4,1.71056]
[1765890564597,0.4284,2950.5,2949.4,3.81876773]
[1765890564802,1.4413,2950.0,2949.9,0.7774]
[1765890565003,3.7213,2950.0,2949.9,0.94693]
[1765890565205,3.15972654,2950.0,2949.9,1.71432649]
[1765890565404,0.00422654,2950.0,2949.9,1.71432649]
[1765890565600,1.4413,2950.5,2950.4,1.7105]
[1765890565804,3.7513,2950.5,2950.4,1.7105]
[1765890566508,3.75563639,2950.5,2950.4,1.7105]
[1765890567412,3.74563639,2950.5,2950.4,1.7105]
[1765890568110,3.96563639,2950.5,2950.4,1.7105]
[1765890568314,0.72983639,2950.5,2950.4,1.7105]
[1765890568504,0.00433639,2950.5,2950.4,1.7105]
[1765890568908,0.00508897,2950.7,2950.6,1.71049]
[1765890569920,0.008319,2950.7,2950.6,1.71049]
[1765890575122,0.7255,2951.1,2951.0,2.12506]
[1765890575412,1.5529,2951.4,2951.3,0.91074]
[1765890575718,4.2329,2951.4,2951.3,0.91074]
[1765890575916,2.7229,2951.4,2951.3,1.65594]
[1765890576117,3.74699902,2951.4,2951.3,0.91074]
[1765890576517,3.74699902,2951.4,2951.3,0.16944]
[1765890580517,3.74699902,2951.4,2950.5,0.4257]
[1765890580518,0.7795,2950.6,2950.5,1.9129]
[1765890580717,1.5203,2950.6,2950.5,3.5824]
[1765890580915,0.7408,2950.6,2950.5,3.5824]
[1765890581115,1.5203,2950.8,2950.7,1.65668]
[1765890581422,2.9708,2950.8,2950.7,3.93444773]
[1765890581814,3.7503,2950.8,2950.7,3.93444773]
[1765890582011,1.5203,2950.4,2950.3,3.04796773]
[1765890582218,1.5203,2950.2,2950.1,3.77671]
[1765890582518,0.7408,2950.2,2950.1,3.77671]
[1765890582915,1.5203,2950.5,2950.4,1.4872]
[1765890583117,3.8503,2950.5,2950.4,1.4872]
[1765890583313,3.8503,2950.5,2950.4,3.00311296]
[1765890583724,3.8503,2950.5,2950.4,2.28611296]
[1765890583924,4.2787,2950.5,2950.4,2.28611296]
[1765890584124,4.2787,2950.5,2950.4,1.51591296]
[1765890585415,1.5203,2950.3,2950.2,0.93971]
[1765890585615,3.9903,2950.3,2950.2,0.16951]
[1765890585820,1.5203,2950.0,2949.9,2.63099649]
[1765890586030,4.1503,2950.0,2949.9,3.34799649]
[1765890586429,4.1503,2950.0,2949.9,0.77399649]
[1765890586623,4.1503,2950.0,2949.9,13.24899649]
[1765890587630,4.5831,2950.0,2949.9,0.00379649]
[1765890588721,3.3708,2950.0,2949.9,1.49099649]
[1765890589232,4.1503,2950.0,2949.9,0.77399649]
[1765890589425,4.1503,2950.0,2949.9,0.00379649]
[1765890589426,4.5787,2950.0,2949.9,0.00379649]
[1765890590526,4.5787,2950.0,2949.9,0.77399649]
[1765890591323,4.5787,2950.0,2949.9,0.00379649]
[1765890591731,0.11,2950.0,2949.9,1.66052649]
[1765890591926,1.5203,2950.4,2950.3,0.7702]
[1765890592123,4.0803,2950.4,2950.3,0.7702]
[1765890592322,1.5203,2950.1,2950.0,2.12242]
[1765890592525,4.2103,2950.1,2950.0,0.16952]
[1765890593126,4.2103,2950.1,2950.0,0.93972]
[1765890593629,4.2103,2950.1,2950.0,0.16952]
[1765890594233,4.2103,2950.1,2950.0,0.93972]
[1765890594630,4.2103,2950.1,2950.0,0.16952]
[1765890597334,4.2103,2950.1,2950.0,0.93972]
[1765890597535,1.5203,2950.1,2950.0,0.16952]
[1765890597736,4.2103,2950.1,2950.0,2.12242]
[1765890598036,3.7603,2950.1,2950.0,0.93972]
[1765890598735,3.7603,2950.1,2950.0,1.65672]
[1765890598926,3.7603,2950.1,2950.0,17.45872]
[1765890602434,3.7603,2950.1,2949.9,0.00379649]
[1765890602435,1.9487,2950.0,2949.9,0.00379649]
[1765890602735,4.4187,2950.0,2949.9,0.77399649]
[1765890602923,3.9903,2950.0,2949.9,1.49099649]
[1765890603329,3.2108,2950.0,2949.9,1.49099649]
[1765890603731,0.4284,2950.5,2949.9,1.49099649]
[1765890603937,0.7596,2950.1,2950.0,1.9383]
[1765890604128,3.1896,2950.1,2950.0,1.9383]
[1765890604324,2.43,2950.1,2950.0,1.9383]
[1765890604529,3.1896,2950.1,2950.0,1.9383]
[1765890605330,3.1896,2950.1,2950.0,3.45455525]
[1765890606134,3.3296,2950.1,2950.0,3.45455525]
[1765890606724,3.3296,2950.1,2950.0,3.62407525]
[1765890606725,2.9596,2950.1,2950.0,3.62407525]
[1765890606927,4.1494,2950.1,2950.0,3.62407525]
[1765890609442,4.1494,2950.1,2950.0,2.44567525]
[1765890610436,4.1494,2950.1,2950.0,18.24067525]
[1765890610635,4.1494,2950.1,2950.0,17.47877525]
[1765890610830,4.1494,2950.1,2950.0,18.23867525]
[1765890611037,4.1494,2950.1,2949.0,30.26268392]
[1765890611038,1.4894,2949.1,2949.0,9.07213917]
[1765890611239,1.4894,2949.1,2949.0,18.79615525]
[1765890611443,0.7596,2949.5,2949.4,1.4839]
[1765890611744,1.4894,2949.6,2949.5,0.7599]
[1765890611942,1.909,2949.5,2949.4,1.68581525]
[1765890612135,4.23152515,2949.5,2949.4,1.68882056]
[1765890612442,4.23152515,2949.5,2949.4,2.44872056]
[1765890613542,4.23152515,2949.5,2949.4,1.68882056]
[1765890614341,4.23152515,2949.5,2949.4,2.44872056]
[1765890615237,4.23152515,2949.5,2949.4,1.68882056]
[1765890616937,4.23152515,2949.5,2949.4,0.00300531]
[1765890618036,1.4894,2949.3,2949.2,0.00508897]
[1765890618240,3.8594,2949.3,2949.2,0.00508897]
[1765890619040,3.8594,2949.3,2949.2,0.00750078]
[1765890622138,1.4894,2948.7,2948.6,2.27615525]
[1765890622333,3.6894,2948.7,2948.6,2.27615525]
[1765890622540,3.6894,2948.7,2948.6,3.00015525]
[1765890623037,3.6894,2948.7,2948.6,3.00337208]
[1765890623951,2.9596,2948.7,2948.6,3.00337208]
[1765890624152,2.2,2948.7,2948.6,3.00337208]
[1765890624548,2.9596,2948.7,2948.6,3.00337208]
[1765890625146,0.7596,2948.7,2948.6,1.48711683]
[1765890625451,3.3496,2948.7,2948.6,1.48711683]
[1765890625944,1.4894,2948.7,2948.6,1.48711683]
[1765890626150,3.3896,2948.7,2948.6,1.48711683]
[1765890626545,4.1194,2948.7,2948.6,1.48711683]
[1765890626946,1.91152515,2949.5,2949.4,0.7599]
[1765890627149,4.52152515,2949.5,2949.4,2.27615525]
[1765890627854,4.52152515,2949.5,2949.4,1.51625525]
[1765890628353,0.7596,2948.7,2948.6,1.65671683]
[1765890628655,1.4894,2948.7,2948.6,18.96797208]
[1765890629049,1.4894,2948.7,2948.6,18.79837208]
[1765890629249,3.7494,2948.7,2948.6,18.79837208]
[1765890630452,3.7494,2948.7,2948.6,3.00337208]
[1765890630662,3.7494,2948.7,2948.6,2.27937208]
[1765890631054,3.7494,2948.7,2948.6,3.00337208]
[1765890631246,2.26,2948.7,2948.6,3.00337208]
[1765890631656,3.0196,2948.7,2948.6,3.00337208]
[1765890632158,3.7494,2948.7,2948.6,3.00337208]
[1765890632357,3.7494,2948.7,2948.6,0.00321683]
[1765890635155,3.7494,2948.7,2948.6,0.76311683]
[1765890635558,3.7494,2948.7,2948.6,1.50181683]
[1765890635858,3.7494,2948.7,2948.6,0.00321683]
[1765890638653,2.26,2948.7,2948.6,0.00321683]
[1765890638860,44.5532,2948.7,2948.6,1.49921683]
[1765890639258,43.8363,2948.7,2948.6,1.49921683]
[1765890639458,3.7532,2948.7,2948.6,1.49921683]
[1765890639865,3.3063,2948.7,2948.6,1.49921683]
[1765890640061,4.0232,2948.7,2948.6,1.49921683]
[1765890640260,4.0232,2948.7,2948.6,0.00321683]
[1765890642262,1.4932,2948.2,2948.1,2.27355525]
[1765890642461,3.9432,2948.2,2948.1,2.27355525]
[1765890642857,3.9432,2948.2,2948.1,3.01225525]
[1765890643051,41.27268,2949.0,2948.1,3.01225525]
[1765890643255,1.4932,2948.5,2948.4,1.496]
[1765890643461,3.7232,2948.5,2948.4,1.496]
[1765890644368,4.1516,2948.5,2948.4,2.27355525]
[1765890644560,4.1516,2948.5,2948.4,1.51625525]
[1765890644761,1.4932,2948.4,2948.3,0.00508897]
[1765890644962,4.1532,2948.4,2948.3,0.00508897]
[1765890645466,4.1532,2948.4,2948.3,0.76238897]
[1765890645658,4.1532,2948.4,2948.3,0.00508897]
[1765890648565,1.4932,2948.2,2948.1,0.003675]
[1765890648868,1.4932,2948.2,2947.5,4.4784]
[1765890648869,1.4932,2947.6,2947.5,2.27600895]
[1765890649067,4.1132,2947.6,2947.5,2.27600895]
[1765890649366,4.1132,2947.6,2947.5,1.51870895]
[1765890649763,1.1451,2947.5,2947.4,1.51870895]
[1765890649965,3.7632,2947.5,2947.4,3.01907057]
[1765890650168,3.0463,2947.5,2947.4,3.01907057]
[1765890650369,3.7632,2947.5,2947.4,1.52307057]
[1765890650569,3.7632,2947.5,2947.4,3.01907057]
[1765890650570,3.0463,2947.5,2947.4,3.01907057]
[1765890650963,0.76,2947.5,2947.4,4.53777952]
[1765890651163,0.00508897,2947.8,2947.7,1.496]
[1765890651366,0.55508897,2947.8,2947.7,3.01470895]
[1765890651562,4.07828897,2947.8,2947.7,3.01470895]
[1765890652162,1.86138897,2947.8,2947.7,3.01470895]
[1765890652466,0.78138897,2947.8,2947.7,3.01470895]
[1765890652666,0.00508897,2947.8,2947.7,3.01470895]
[1765890652868,1.4932,2948.5,2948.4,1.496]
[1765890653071,3.9832,2948.5,2948.4,2.27600895]
[1765890653273,4.3386,2948.5,2948.4,2.27600895]
[1765890653582,3.9832,2948.5,2948.4,3.01470895]
[1765890653769,2.9963,2948.5,2948.4,3.01470895]
[1765890653969,0.53,2948.5,2948.4,4.5334179]
[1765890654178,0.00508897,2948.7,2948.6,1.496]
[1765890654472,0.00508897,2948.7,2948.6,3.01470895]
[1765890654667,1.22992629,2949.3,2948.6,3.01470895]
[1765890654668,2.72312629,2949.3,2949.2,0.7573]
[1765890654864,4.99312629,2949.3,2949.2,2.27600895]
[1765890655061,4.99312629,2949.3,2949.2,3.01470895]
[1765890655267,3.49992629,2949.3,2949.2,3.01470895]
[1765890655472,4.27622629,2949.3,2949.2,1.496]
[1765890655863,4.99312629,2949.3,2949.2,1.496]
[1765890656269,4.99312629,2949.3,2948.9,2.27579247]
[1765890656270,1.4932,2949.0,2948.9,3.03309247]
[1765890656475,3.7632,2949.0,2948.9,18.02479247]
[1765890656778,3.0463,2949.0,2948.9,18.02479247]
[1765890657872,3.0463,2949.0,2948.9,17.296]
[1765890658069,3.7632,2949.0,2948.9,17.296]
[1765890659069,3.7632,2949.0,2948.7,17.297]
[1765890659070,1.4932,2948.8,2948.7,17.297]
[1765890660277,0.7763,2948.8,2948.7,17.297]
[1765890660573,2.72312629,2949.3,2949.2,1.496]
[1765890660769,5.11312629,2949.3,2949.2,1.496]
[1765890661272,1.4932,2949.1,2948.8,2.44551732]
[1765890661573,0.7763,2948.9,2948.8,3.94151732]
[1765890661774,2.9663,2948.9,2948.8,3.94151732]
[1765890662377,1.4932,2948.6,2948.5,1.9458]
[1765890662672,3.7532,2948.6,2948.5,1.496]
[1765890662865,3.7532,2948.6,2948.5,0.7573]
[1765890663175,1.4932,2948.4,2948.3,0.16962]
[1765890663375,1.4932,2948.3,2948.2,0.76238897]
[1765890663575,3.7032,2948.3,2948.2,1.50108897]
[1765890663778,2.21,2948.3,2948.2,1.50108897]
[1765890664375,0.07,2948.3,2948.2,1.50108897]
[1765890664777,4.1482,2948.3,2948.2,1.50108897]
[1765890664976,4.1482,2948.3,2948.2,16.56138897]
[1765890665378,4.1482,2948.3,2948.2,0.00508897]
[1765890666176,0.25571412,2949.5,2948.8,1.4979]
[1765890666372,0.31571412,2949.5,2948.8,1.4979]
[1765890666571,2.55571412,2949.5,2948.8,1.4979]
[1765890666778,2.30761412,2949.5,2949.4,1.4979]
[1765890667172,3.07401412,2949.5,2949.4,1.4979]
[1765890667471,1.4982,2949.4,2949.3,0.7165]
[1765890667681,0.7664,2948.9,2948.8,3.77382732]
[1765890667976,0.25571412,2949.5,2948.8,5.75082732]
[1765890668177,2.68571412,2949.5,2948.8,5.75082732]
[1765890669074,2.68571412,2949.5,2948.8,3.77382732]
[1765890669277,0.7664,2948.6,2948.5,2.12211]
[1765890669480,0.25571412,2949.5,2948.6,4.5559]
[1765890669680,2.91571412,2949.5,2948.6,4.5559]
[1765890670475,1.4982,2948.6,2948.0,0.62423]
[1765890670779,1.4982,2948.6,2948.5,1.9525]
[1765890670780,2.26,2948.6,2948.5,1.9525]
[1765890671376,3.0264,2948.6,2948.5,1.9525]
[1765890673183,3.7582,2948.6,2948.5,1.4979]
[1765890673377,3.7582,2948.6,2948.5,0.7165]
[1765890673575,1.4982,2948.4,2948.3,7.52782732]
[1765890673982,0.7664,2948.4,2948.3,7.52782732]
[1765890674580,0.4402,2949.0,2948.3,7.52782732]
[1765890674782,3.1502,2949.0,2948.3,7.52782732]
[1765890675280,40.8,2948.9,2948.3,7.52782732]
[1765890675482,43.45,2948.9,2948.3,7.52782732]
[1765890676685,2.65,2948.9,2948.3,7.52782732]
[1765890676887,0.7664,2948.4,2948.3,7.52782732]
[1765890677083,1.4982,2948.4,2948.3,0.7165]
[1765890677385,3.8582,2948.4,2948.3,1.4979]
[1765890679688,1.4982,2948.3,2948.2,0.72158897]
[1765890679889,1.4982,2948.3,2948.2,1.50298897]
[1765890680090,0.7664,2948.3,2948.2,1.50298897]
[1765890681390,0.7664,2948.3,2948.2,3.02120217]
[1765890685599,40.8,2948.9,2948.2,3.02120217]
[1765890685804,1.4982,2948.8,2948.7,1.5182132]
[1765890685993,3.5282,2948.8,2948.7,1.5182132]
[1765890686795,3.5282,2948.8,2948.7,3.0161132]
[1765890687002,2.03,2948.8,2948.7,3.0161132]
[1765890687397,40.8,2949.4,2948.7,3.0161132]
[1765890687597,1.4982,2949.2,2949.1,2.2347132]
[1765890687798,3.9982,2949.2,2949.1,2.2347132]
[1765890689100,3.9982,2949.2,2949.1,1.5182132]
[1765890689300,3.9982,2949.2,2948.5,0.62421]
[1765890689500,0.4402,2949.0,2948.5,0.62421]
[1765890689702,4.5784,2949.0,2948.9,2.2347132]
[1765890689901,4.5784,2949.0,2948.9,3.0161132]
[1765890691105,4.5784,2949.0,2948.9,1.5182132]
[1765890691309,1.4982,2948.6,2948.5,2.12211]
[1765890691806,1.9384,2949.0,2948.9,0.7165]
[1765890692105,4.1784,2949.0,2948.9,1.5182132]
[1765890692611,2.6802,2949.0,2948.7,1.5182132]
[1765890692807,1.4982,2948.8,2948.7,2.2347132]
[1765890693013,3.6982,2948.8,2948.7,2.2347132]
[1765890693407,3.6982,2948.8,2948.7,3.0161132]
[1765890694509,2.2,2948.8,2948.7,3.0161132]
[1765890694711,1.2474,2948.8,2948.7,3.0161132]
[1765890694907,3.3274,2948.8,2948.7,3.0161132]
[1765890695205,3.0774,2948.8,2948.7,3.0161132]
[1765890695603,3.7926,2948.8,2948.7,3.0161132]
[1765890699012,3.6326,2948.8,2948.7,3.0161132]
[1765890699515,1.4326,2948.8,2948.7,3.0161132]
[1765890699715,3.8926,2948.8,2948.7,3.0161132]
[1765890702618,40.8,2949.4,2949.3,0.7497]
[1765890702819,2.2474,2949.4,2949.3,3.0252132]
[1765890703211,2.9626,2949.4,2949.3,3.0252132]
[1765890703711,2.2474,2949.4,2949.3,3.0252132]
[1765890704118,1.53,2949.4,2949.3,3.0252132]
[1765890704419,2.9626,2949.4,2949.3,3.0252132]
[1765890707421,2.9626,2949.4,2949.3,3.02418716]
[1765890713421,1.53,2949.4,2949.3,3.02418716]
[1765890713619,0.00761412,2949.5,2949.4,1.507]
[1765890713925,0.00761412,2949.5,2949.4,7.827]
[1765890715717,0.7174,2949.4,2949.3,1.507]
[1765890715919,1.4326,2949.4,2949.3,2.26688716]
[1765890716126,1.4326,2949.3,2949.2,0.7497]
[1765890716422,3.7926,2949.3,2949.2,0.7497]
[1765890717721,3.7926,2949.3,2949.2,1.507]
[1765890717926,3.0774,2949.3,2949.2,1.507]
[1765890718527,3.7926,2949.3,2949.2,1.507]
[1765890719131,3.7926,2949.3,2949.2,0.7497]
[1765890719317,1.4326,2949.2,2949.1,1.51718716]
[1765890719523,3.6526,2949.2,2949.1,2.26688716]
[1765890719723,3.6526,2949.2,2949.1,3.02418716]
[1765890720326,2.22,2949.2,2949.1,3.02418716]
[1765890720726,0.00761412,2949.5,2949.4,1.507]
[1765890721042,0.16949,2950.7,2949.5,0.4505]
[1765890721338,1.4326,2950.0,2949.9,3.02418716]
[1765890721538,3.7126,2950.0,2949.9,3.02418716]
[1765890722039,3.71700058,2950.0,2949.9,3.0284394]
[1765890722328,0.00440058,2950.0,2949.9,3.0284394]
[1765890722636,0.00440058,2950.0,2949.9,12.8594394]
[1765890722820,0.00508897,2950.2,2950.1,1.507]
[1765890723436,40.8,2950.9,2950.1,1.507]
[1765890723627,1.4901,2950.6,2950.5,3.46188716]
[1765890723828,4.17331607,2950.6,2950.5,3.46188716]
[1765890724830,2.06331607,2950.6,2950.5,3.46188716]
[1765890725337,0.57321607,2950.6,2950.5,3.46188716]
[1765890725629,1.29301607,2950.6,2950.5,3.46188716]
[1765890725832,0.00321607,2950.6,2950.5,3.46188716]
[1765890727629,0.00321607,2950.6,2950.3,2.23928716]
[1765890727630,1.4925,2950.4,2950.3,2.23928716]
[1765890727936,4.0425,2950.4,2950.3,2.97618716]
[1765890728835,2.69,2950.4,2950.3,2.97618716]
[1765890729227,3.4098,2950.4,2950.3,2.97618716]
[1765890729428,2.69,2950.4,2950.3,1.459]
[1765890729629,0.00321607,2950.6,2950.5,1.9171]
[1765890729829,3.71571607,2950.6,2950.5,1.9171]
[1765890730136,3.71571607,2950.6,2950.5,1.459]
[1765890730638,3.71571607,2950.6,2950.5,1.9171]
[1765890732233,3.71571607,2950.6,2950.5,0.7221]
[1765890732424,3.71571607,2950.6,2950.5,1.459]
[1765890733936,3.71571607,2950.6,2950.1,0.16952]
[1765890734137,0.7198,2950.3,2950.2,12.1631]
[1765890734339,0.7198,2950.3,2950.2,12.9]
[1765890734535,1.4925,2950.0,2949.9,1.46325224]
[1765890734840,1.49571607,2950.6,2950.0,0.4581]
[1765890735137,1.4925,2950.1,2950.0,1.9171]
[1765890735435,2.53,2950.1,2950.0,1.9171]
[1765890736439,3.2498,2950.1,2950.0,1.9171]
[1765890737443,4.0225,2950.1,2950.0,1.9171]
[1765890737837,3.2498,2950.1,2950.0,1.9171]
[1765890738036,4.0225,2950.1,2950.0,1.9171]
[1765890738943,3.2498,2950.1,2950.0,1.9171]
[1765890740140,4.0225,2950.1,2950.0,1.9171]
[1765890740339,3.2498,2950.1,2950.0,1.9171]
[1765890740643,2.9998,2950.1,2950.0,1.9171]
[1765890740943,1.49571607,2950.6,2950.5,1.459]
[1765890741136,3.92571607,2950.6,2950.5,1.9171]
[1765890741335,2.22301607,2950.6,2950.5,1.9171]
[1765890741532,1.50321607,2950.6,2950.5,1.9171]
[1765890741936,2.22301607,2950.6,2950.5,1.9171]
[1765890743344,0.00321607,2950.6,2950.5,1.9171]
[1765890743945,0.00321607,2950.6,2950.5,2.0866]
[1765890745543,0.72301607,2950.6,2950.5,2.0866]
[1765890745739,0.00321607,2950.6,2950.5,2.0866]
[1765890747445,1.49571607,2950.6,2950.5,1.459]
[1765890747648,1.4925,2950.3,2950.2,6.267]
[1765890747947,1.4925,2950.1,2950.0,0.7221]
[1765890748146,3.7725,2950.1,2950.0,1.459]
[1765890748446,3.7725,2950.1,2950.0,0.7221]
[1765890750051,2.2825,2950.1,2950.0,1.9171]
[1765890750552,3.2398,2950.1,2950.0,1.9171]
[1765890750947,0.7198,2950.1,2950.0,1.9171]
[1765890751152,0.00321607,2950.6,2950.0,1.9171]
[1765890751153,0.00321607,2950.6,2950.5,1.9171]
[1765890751645,1.49571607,2950.6,2950.5,1.9171]
[1765890751843,1.4925,2950.5,2950.4,1.6285]
[1765890752043,0.7198,2950.5,2950.4,9.0235]
[1765890752242,0.00321607,2950.6,2950.5,1.9171]
[1765890752442,3.97571607,2950.6,2950.5,1.9171]
[1765890752649,3.97571607,2950.6,2950.4,7.5645]
[1765890752650,1.943,2950.5,2950.4,0.7221]
[1765890752846,2.62,2950.5,2950.4,1.459]
[1765890753147,3.3398,2950.5,2950.4,1.459]
[1765890753346,4.1125,2950.5,2950.4,1.459]
[1765890753547,3.3398,2950.5,2950.4,1.459]
[1765890754148,0.63,2950.5,2950.4,1.459]
[1765890754648,4.0748,2950.5,2950.4,1.459]
[1765890754861,3.3021,2950.5,2950.4,1.459]
[1765890755159,1.5048,2950.5,2950.4,1.459]
[1765890755558,1.5048,2950.2,2950.1,1.65771]
[1765890755765,1.5048,2950.2,2950.1,11.94871]
[1765890756456,3.8548,2950.2,2950.1,17.44371]
[1765890756662,0.9221,2950.2,2950.1,17.44371]
[1765890757162,3.3821,2950.2,2950.1,17.44371]
[1765890757454,0.9621,2950.2,2950.1,17.44371]
[1765890758059,2.9021,2950.2,2950.1,17.44371]
[1765890758258,3.6748,2950.2,2950.1,17.44371]
[1765890758656,1.5048,2950.0,2949.9,17.27845224]
[1765890758855,3.9648,2950.0,2949.9,17.27845224]
[1765890760058,3.9648,2950.0,2949.9,16.52505224]
[1765890760458,3.9648,2950.0,2949.9,17.27845224]
[1765890760663,4.4058,2950.0,2949.9,16.52505224]
[1765890762262,0.7321,2950.0,2949.9,17.27845224]
[1765890762463,2.36,2950.0,2949.9,17.27845224]
[1765890762768,0.441,2950.5,2950.0,0.4673]
[1765890763066,3.071,2950.5,2950.0,0.4673]
[1765890763269,4.5758,2950.5,2950.4,0.7348]
[1765890765057,1.5048,2950.1,2950.0,1.2021]
[1765890765258,3.9648,2950.1,2950.0,0.7348]